fUST/lending_fUST_20240912
["ID","MTS","AMOUNT","RATE_DAILY","PERIOD"]
[337788521,1726120179526,-500.0,0.00018904,2]
[337788522,1726120179548,-500.0,0.00018904,2]
[337788523,1726120179571,-1649.99,0.00018904,2]
[337788524,1726120179598,-1853.89,0.00018904,2]
[337788525,1726120179621,-500.0,0.00018904,2]
[337788526,1726120179644,-500.0,0.00018904,2]
[337788527,1726120179665,-500.0,0.00018904,2]
[337788528,1726120179687,-500.0,0.00018904,2]
[337788529,1726120179713,-565.73,0.00018904,2]
[337788530,1726120179736,-500.0,0.00018904,2]
[337788531,1726120179760,-3823.52,0.00018904,2]
[337788532,1726120179781,-500.0,0.00018904,2]
[337788533,1726120179803,-500.0,0.00018904,2]
[337788534,1726120179826,-22020.08,0.00018904,2]
[337788535,1726120179850,-5622.05,0.00018904,2]
[337788536,1726120179874,-500.0,0.00018904,2]
[337788537,1726120179897,-1353.58,0.00018904,2]
[337788538,1726120179921,-500.0,0.00018904,2]
[337788539,1726120179945,-631.56,0.00018904,2]
[337788540,1726120179968,-1320.81,0.00018904,2]
[337788541,1726120179990,-500.0,0.00018904,2]
[337788542,1726120180014,-500.0,0.00018904,2]
[337788543,1726120180036,-601.57,0.00018904,2]
[337788544,1726120180059,-200.73603317,0.0001895,2]
[337788545,1726120180081,-500.0,0.0001895,2]
[337788546,1726120180104,-500.0,0.0001895,2]
[337788547,1726120180124,-500.0,0.0001895,2]
[337788548,1726120180147,-500.0,0.0001895,2]
[337788549,1726120180170,-17487.4207614,0.00018991,3]
[337788550,1726120180194,-23427.50430623,0.00019001,2]
[337788551,1726120180216,-1609.03717715,0.00019015,2]
[337788552,1726120180243,-14768.779534,0.00019168,3]
[337788553,1726120180271,-17487.4207614,0.00019168,3]
[337788554,1726120180292,-500.0,0.00019178,2]
[337788555,1726120180315,-935.59,0.00019178,2]
[337788556,1726120180338,-500.0,0.00019178,2]
[337788557,1726120180361,-500.0,0.00019178,2]
[337788558,1726120180382,-850.52,0.00019178,2]
[337788559,1726120180408,-500.0,0.00019178,2]
[337788560,1726120180431,-1032.85,0.00019178,2]
[337788561,1726120180455,-1451.03,0.00019178,2]
[337788562,1726120180479,-500.0,0.00019178,2]
[337788563,1726120180502,-1120.39,0.00019178,2]
[337788564,1726120180527,-619.85,0.00019178,2]
[337788565,1726120180551,-1885.16,0.00019178,2]
[337788566,1726120180575,-1062.15,0.00019178,2]
[337788567,1726120180596,-723.52,0.00019178,2]
[337788568,1726120180617,-500.0,0.00019178,2]
[337788569,1726120180638,-1280.46,0.00019178,2]
[337788570,1726120180659,-802.21,0.00019178,2]
[337788571,1726120180682,-862.42,0.00019178,2]
[337788572,1726120180703,-829.19,0.00019178,2]
[337788573,1726120180725,-1195.5,0.00019178,2]
[337788574,1726120180748,-500.0,0.00019178,2]
[337788575,1726120180770,-500.0,0.00019178,2]
[337788576,1726120180793,-1973.91,0.00019178,2]
[337788577,1726120180815,-537.61,0.00019178,2]
[337788578,1726120180840,-500.0,0.00019178,2]
[337788579,1726120180863,-500.0,0.00019178,2]
[337788580,1726120180885,-540.55,0.00019178,2]
[337788581,1726120180908,-21987.48,0.00019178,2]
[337788582,1726120180929,-1141.94,0.00019178,2]
[337788583,1726120180951,-1329.92,0.00019178,2]
[337788584,1726120180974,-1485.95,0.00019178,2]
[337788585,1726120180995,-1012.07,0.00019178,2]
[337788586,1726120181016,-500.0,0.00019178,2]
[337788587,1726120181038,-1938.17,0.00019178,2]
[337788588,1726120181060,-1238.32,0.00019178,2]
[337788589,1726120181081,-500.0,0.00019178,2]
[337788590,1726120181103,-1489.37,0.00019178,2]
[337788591,1726120181124,-1410.29,0.00019178,2]
[337788592,1726120181144,-1018.33,0.00019178,2]
[337788593,1726120181166,-651.53,0.00019178,2]
[337788594,1726120181190,-718.69,0.00019178,2]
[337788595,1726120181211,-500.0,0.00019178,2]
[337788596,1726120181231,-544.16,0.00019178,2]
[337788597,1726120181252,-555.97,0.00019178,2]
[337788598,1726120181277,-1466.67,0.00019178,2]
[337788599,1726120181298,-832.83,0.00019178,2]
[337788600,1726120181319,-631.5,0.00019178,2]
[337788601,1726120181341,-500.0,0.00019178,2]
[337788602,1726120181362,-892.86,0.00019178,2]
[337788603,1726120181384,-541.55867929,0.00019178,2]
[337788604,1726120181596,-500.0,0.00019178,2]
[337788605,1726120181629,-844.45,0.00019178,2]
[337788606,1726120181651,-500.0,0.00019178,2]
[337788607,1726120181673,-1458.03,0.00019178,2]
[337788608,1726120181693,-2154.29,0.00019178,2]
[337788609,1726120181714,-1013.82,0.00019178,2]
[337788610,1726120181735,-153.34712413,0.00019178,2]
[337788611,1726120181757,-545.81059161,0.00019178,2]
[337788612,1726120181777,-500.0,0.00019178,2]
[337788613,1726120181798,-1649.99,0.00019178,2]
[337788614,1726120181820,-1853.89,0.00019178,2]
[337788615,1726120181840,-500.0,0.00019178,2]
[337788616,1726120181866,-500.0,0.00019178,2]
[337788617,1726120181890,-500.0,0.00019178,2]
[337788618,1726120181911,-500.0,0.00019178,2]
[337788619,1726120181933,-565.73,0.00019178,2]
[337788620,1726120181955,-500.0,0.00019178,2]
[337788621,1726120181977,-3823.52,0.00019178,2]
[337788622,1726120181997,-500.0,0.00019178,2]
[337788623,1726120182017,-500.0,0.00019178,2]
[337788624,1726120182038,-22020.08,0.00019178,2]
[337788625,1726120182060,-5622.05,0.00019178,2]
[337788626,1726120182081,-500.0,0.00019178,2]
[337788627,1726120182103,-1353.58,0.00019178,2]
[337788628,1726120182123,-500.0,0.00019178,2]
[337788629,1726120182146,-631.56,0.00019178,2]
[337788630,1726120182168,-1320.81,0.00019178,2]
[337788631,1726120182188,-500.0,0.00019178,2]
[337788632,1726120182210,-500.0,0.00019178,2]
[337788633,1726120182231,-151.0,0.00019178,2]
[337788634,1726120182252,-601.57,0.00019178,2]
[337788635,1726120182276,-711.6503578,0.00019199,2]
[337788636,1726120182297,-150.112233,0.000192,2]
[337788637,1726120182319,-14768.779534,0.00019442,3]
[337788638,1726120182341,-17487.4207614,0.00019442,3]
[337788639,1726120182364,-500.0,0.00019452,2]
[337788640,1726120182386,-935.59,0.00019452,2]
[337788641,1726120182412,-334.30917197,0.00019452,2]
[337788642,1726120182433,-517.39481281,0.00019452,2]
[337788643,1726120182456,-850.52,0.00019452,2]
[337788644,1726120182477,-500.0,0.00019452,2]
[337788645,1726120182498,-1032.85,0.00019452,2]
[337788646,1726120182520,-1451.03,0.00019452,2]
[337788647,1726120182541,-500.0,0.00019452,2]
[337788648,1726120182562,-1120.39,0.00019452,2]
[337788649,1726120182583,-619.85,0.00019452,2]
[337788650,1726120182605,-1885.16,0.00019452,2]
[337788651,1726120182626,-1062.15,0.00019452,2]
[337788652,1726120182647,-723.52,0.00019452,2]
[337788653,1726120182668,-500.0,0.00019452,2]
[337788654,1726120182690,-1280.46,0.00019452,2]
[337788655,1726120182711,-802.21,0.00019452,2]
[337788656,1726120182732,-862.42,0.00019452,2]
[337788657,1726120182753,-829.19,0.00019452,2]
[337788658,1726120182773,-1195.5,0.00019452,2]
[337788659,1726120182794,-500.0,0.00019452,2]
[337788660,1726120182815,-500.0,0.00019452,2]
[337788661,1726120182836,-1973.91,0.00019452,2]
[337788662,1726120182860,-537.61,0.00019452,2]
[337788663,1726120182881,-500.0,0.00019452,2]
[337788664,1726120182902,-500.0,0.00019452,2]
[337788665,1726120182922,-540.55,0.00019452,2]
[337788666,1726120182945,-21987.48,0.00019452,2]
[337788667,1726120182965,-1141.94,0.00019452,2]
[337788668,1726120182987,-1329.92,0.00019452,2]
[337788669,1726120183011,-1485.95,0.00019452,2]
[337788670,1726120183033,-1012.07,0.00019452,2]
[337788671,1726120183054,-536.01475524,0.00019452,2]
[337788672,1726120183076,-1938.17,0.00019452,2]
[337788673,1726120183099,-1238.32,0.00019452,2]
[337788674,1726120183120,-500.0,0.00019452,2]
[337788675,1726120183145,-1489.37,0.00019452,2]
[337788676,1726120183167,-1410.29,0.00019452,2]
[337788677,1726120183188,-1018.33,0.00019452,2]
[337788678,1726120183212,-651.53,0.00019452,2]
[337788679,1726120183234,-718.69,0.00019452,2]
[337788680,1726120183257,-500.0,0.00019452,2]
[337788681,1726120183279,-544.16,0.00019452,2]
[337788682,1726120183303,-555.97,0.00019452,2]
[337788683,1726120183326,-1466.67,0.00019452,2]
[337788684,1726120183349,-832.83,0.00019452,2]
[337788685,1726120183371,-631.5,0.00019452,2]
[337788686,1726120183394,-500.0,0.00019452,2]
[337788687,1726120183420,-892.86,0.00019452,2]
[337788688,1726120183445,-500.0,0.00019452,2]
[337788689,1726120183469,-844.45,0.00019452,2]
[337788690,1726120183490,-500.0,0.00019452,2]
[337788691,1726120183513,-1458.03,0.00019452,2]
[337788692,1726120183535,-835.71371352,0.00019452,2]
[337788693,1726120183985,-1528.89,0.00016438,2]
[337788694,1726120184009,-1528.89,0.00016712,2]
[337788695,1726120184033,-1528.89,0.00016986,2]
[337788696,1726120184056,-1528.89,0.0001726,2]
[337788697,1726120184077,-1528.89,0.00017534,2]
[337788698,1726120184100,-151.0,0.00019178,2]
[337788699,1726120184121,-1325.195732,0.00019178,2]
[337788700,1726120184143,-1318.57628648,0.00019452,2]
[337788701,1726120184165,-1013.82,0.00019452,2]
[337788702,1726120184186,-500.0,0.00019452,2]
[337788703,1726120184207,-1649.99,0.00019452,2]
[337788704,1726120184228,-1853.89,0.00019452,2]
[337788705,1726120184249,-500.0,0.00019452,2]
[337788706,1726120184272,-500.0,0.00019452,2]
[337788707,1726120184292,-500.0,0.00019452,2]
[337788708,1726120184312,-164.36585617,0.00019452,2]
[337788709,1726120184334,-565.73,0.00019452,2]
[337788710,1726120184355,-500.0,0.00019452,2]
[337788711,1726120184376,-3823.52,0.00019452,2]
[337788712,1726120184396,-500.0,0.00019452,2]
[337788713,1726120184417,-500.0,0.00019452,2]
[337788714,1726120184439,-22020.08,0.00019452,2]
[337788715,1726120184461,-5622.05,0.00019452,2]
[337788716,1726120184483,-500.0,0.00019452,2]
[337788717,1726120184503,-1353.58,0.00019452,2]
[337788718,1726120184523,-500.0,0.00019452,2]
[337788719,1726120184544,-631.56,0.00019452,2]
[337788720,1726120184565,-1320.81,0.00019452,2]
[337788721,1726120184589,-500.0,0.00019452,2]
[337788722,1726120184610,-500.0,0.00019452,2]
[337788723,1726120184630,-601.57,0.00019452,2]
[337788724,1726120184652,-250.0,0.00019513,2]
[337788725,1726120184674,-250.0,0.00019567,2]
[337788726,1726120184695,-250.0,0.0001962,2]
[337788727,1726120184719,-250.0,0.00019674,2]
[337788728,1726120184744,-16128.18997268,0.00019716,3]
[337788729,1726120184777,-13409.36909532,0.00019716,3]
[337788730,1726120184800,-34974.8415227,0.00019716,3]
[337788731,1726120184821,-500.0,0.00019726,2]
[337788732,1726120184843,-935.59,0.00019726,2]
[337788733,1726120184866,-850.52,0.00019726,2]
[337788734,1726120184888,-500.0,0.00019726,2]
[337788735,1726120184911,-1032.85,0.00019726,2]
[337788736,1726120184934,-1451.03,0.00019726,2]
[337788737,1726120184956,-500.0,0.00019726,2]
[337788738,1726120184977,-1120.39,0.00019726,2]
[337788739,1726120184999,-619.85,0.00019726,2]
[337788740,1726120185021,-1885.16,0.00019726,2]
[337788741,1726120185042,-1062.15,0.00019726,2]
[337788742,1726120185062,-723.52,0.00019726,2]
[337788743,1726120185083,-500.0,0.00019726,2]
[337788744,1726120185109,-1280.46,0.00019726,2]
[337788745,1726120185131,-802.21,0.00019726,2]
[337788746,1726120185152,-862.42,0.00019726,2]
[337788747,1726120185172,-829.19,0.00019726,2]
[337788748,1726120185380,-1195.5,0.00019726,2]
[337788749,1726120185400,-500.0,0.00019726,2]
[337788750,1726120185420,-500.0,0.00019726,2]
[337788751,1726120185441,-1973.91,0.00019726,2]
[337788752,1726120185462,-537.61,0.00019726,2]
[337788753,1726120185483,-500.0,0.00019726,2]
[337788754,1726120185504,-500.0,0.00019726,2]
[337788755,1726120185525,-540.55,0.00019726,2]
[337788756,1726120185548,-21987.48,0.00019726,2]
[337788757,1726120185569,-1141.94,0.00019726,2]
[337788758,1726120185592,-1329.92,0.00019726,2]
[337788759,1726120185617,-1485.95,0.00019726,2]
[337788760,1726120185641,-1012.07,0.00019726,2]
[337788761,1726120185662,-1938.17,0.00019726,2]
[337788762,1726120185683,-1238.32,0.00019726,2]
[337788763,1726120185704,-500.0,0.00019726,2]
[337788764,1726120185725,-1410.29,0.00019726,2]
[337788765,1726120185746,-1018.33,0.00019726,2]
[337788766,1726120185768,-651.53,0.00019726,2]
[337788767,1726120185790,-1489.37,0.00019726,2]
[337788768,1726120185810,-718.69,0.00019726,2]
[337788769,1726120185830,-500.0,0.00019726,2]
[337788770,1726120185853,-544.16,0.00019726,2]
[337788771,1726120185873,-555.97,0.00019726,2]
[337788772,1726120185895,-1466.67,0.00019726,2]
[337788773,1726120185918,-832.83,0.00019726,2]
[337788774,1726120185942,-631.5,0.00019726,2]
[337788775,1726120185965,-431.10312221,0.00019726,2]
[337788776,1726120185987,-892.86,0.00019726,2]
[337788777,1726120186008,-500.0,0.00019726,2]
[337788778,1726120186029,-844.45,0.00019726,2]
[337788779,1726120186051,-500.0,0.00019726,2]
[337788780,1726120186075,-1458.03,0.00019726,2]
[337788781,1726120186096,-2154.29,0.00019726,2]
[337788782,1726120186118,-1013.82,0.00019726,2]
[337788783,1726120186140,-500.0,0.00019726,2]
[337788784,1726120186163,-1649.99,0.00019726,2]
[337788785,1726120186185,-1853.89,0.00019726,2]
[337788786,1726120186205,-500.0,0.00019726,2]
[337788787,1726120186226,-500.0,0.00019726,2]
[337788788,1726120186247,-312.16307283,0.00019726,2]
[337788789,1726120186271,-565.73,0.00019726,2]
[337788790,1726120186294,-500.0,0.00019726,2]
[337788791,1726120186320,-3823.52,0.00019726,2]
[337788792,1726120186344,-500.0,0.00019726,2]
[337788793,1726120186364,-500.0,0.00019726,2]
[337788794,1726120186386,-22020.08,0.00019726,2]
[337788795,1726120186407,-5622.05,0.00019726,2]
[337788796,1726120186429,-519.15077321,0.00019726,2]
[337788797,1726120186450,-1353.58,0.00019726,2]
[337788798,1726120186470,-500.0,0.00019726,2]
[337788799,1726120186494,-631.56,0.00019726,2]
[337788800,1726120186515,-1320.81,0.00019726,2]
[337788802,1726120186539,-500.0,0.00019726,2]
[337788803,1726120186561,-500.0,0.00019726,2]
[337788804,1726120186582,-151.0,0.00019726,2]
[337788805,1726120186606,-601.57,0.00019726,2]
[337788806,1726120186629,-151.0,0.00019726,2]
[337788807,1726120186652,-250.0,0.00019727,2]
[337788808,1726120186674,-250.0,0.00019781,2]
[337788809,1726120186696,-250.0,0.00019835,2]
[337788810,1726120186719,-250.0,0.00019888,2]
[337788811,1726120186741,-587.0,0.00019889,2]
[337788812,1726120186764,-250.0,0.00019942,2]
[337788813,1726120186788,-14768.779534,0.0001999,3]
[337788814,1726120186811,-17487.4207614,0.0001999,3]
[337788815,1726120186835,-250.0,0.00019995,2]
[337788816,1726120186862,-528.8169174,0.0002,2]
[337788817,1726120186885,-935.59,0.0002,2]
[337788818,1726120186906,-850.52,0.0002,2]
[337788819,1726120186928,-500.0,0.0002,2]
[337788820,1726120186949,-1032.85,0.0002,2]
[337788821,1726120186971,-1451.03,0.0002,2]
[337788822,1726120186993,-500.0,0.0002,2]
[337788823,1726120187015,-1120.39,0.0002,2]
[337788824,1726120187037,-619.85,0.0002,2]
[337788825,1726120187058,-1885.16,0.0002,2]
[337788826,1726120187079,-1062.15,0.0002,2]
[337788827,1726120187102,-723.52,0.0002,2]
[337788828,1726120187123,-500.0,0.0002,2]
[337788829,1726120187144,-1280.46,0.0002,2]
[337788830,1726120187167,-802.21,0.0002,2]
[337788831,1726120187189,-862.42,0.0002,2]
[337788832,1726120187211,-829.19,0.0002,2]
[337788833,1726120187234,-1195.5,0.0002,2]
[337788834,1726120187258,-500.0,0.0002,2]
[337788835,1726120187279,-500.0,0.0002,2]
[337788836,1726120187306,-1973.91,0.0002,2]
[337788837,1726120187328,-537.61,0.0002,2]
[337788838,1726120187353,-500.0,0.0002,2]
[337788839,1726120187374,-500.0,0.0002,2]
[337788840,1726120187396,-540.55,0.0002,2]
[337788841,1726120187424,-21987.48,0.0002,2]
[337788842,1726120187456,-1141.94,0.0002,2]
[337788843,1726120187487,-1329.92,0.0002,2]
[337788844,1726120187517,-1485.95,0.0002,2]
[337788845,1726120187547,-1012.07,0.0002,2]
[337788846,1726120187579,-1938.17,0.0002,2]
[337788847,1726120187611,-1238.32,0.0002,2]
[337788848,1726120187641,-470.00633216,0.0002,2]
[337788849,1726120187670,-1410.29,0.0002,2]
[337788850,1726120187702,-1018.33,0.0002,2]
[337788851,1726120187732,-651.53,0.0002,2]
[337788852,1726120187757,-1489.37,0.0002,2]
[337788853,1726120187784,-718.69,0.0002,2]
[337788854,1726120187813,-585.94011378,0.0002,2]
[337788855,1726120187843,-544.16,0.0002,2]
[337788856,1726120187877,-555.97,0.0002,2]
[337788857,1726120187906,-1466.67,0.0002,2]
[337788858,1726120187931,-832.83,0.0002,2]
[337788859,1726120187962,-631.5,0.0002,2]
[337788860,1726120187992,-892.86,0.0002,2]
[337788861,1726120188018,-500.0,0.0002,2]
[337788862,1726120188048,-844.45,0.0002,2]
[337788863,1726120188079,-500.0,0.0002,2]
[337788864,1726120188107,-1458.03,0.0002,2]
[337788865,1726120188136,-2154.29,0.0002,2]
[337788866,1726120188169,-1013.82,0.0002,2]
[337788867,1726120188208,-500.0,0.0002,2]
[337788868,1726120188240,-1649.99,0.0002,2]
[337788869,1726120188273,-1853.89,0.0002,2]
[337788870,1726120188302,-500.0,0.0002,2]
[337788871,1726120188333,-500.0,0.0002,2]
[337788872,1726120188364,-565.73,0.0002,2]
[337788873,1726120188395,-500.0,0.0002,2]
[337788874,1726120188425,-3823.52,0.0002,2]
[337788875,1726120188453,-418.34126596,0.0002,2]
[337788876,1726120188481,-500.0,0.0002,2]
[337788877,1726120188509,-22020.08,0.0002,2]
[337788878,1726120188538,-5622.05,0.0002,2]
[337788879,1726120188565,-1353.58,0.0002,2]
[337788880,1726120188591,-500.0,0.0002,2]
[337788881,1726120188619,-631.56,0.0002,2]
[337788882,1726120188645,-1320.81,0.0002,2]
[337788883,1726120188674,-500.0,0.0002,2]
[337788884,1726120188700,-500.0,0.0002,2]
[337788885,1726120188729,-601.57,0.0002,2]
[337788886,1726120188755,-192.70172254,0.00020029,2]
[337788887,1726120188794,151.0,0.00019178,2]
[337788888,1726120188837,1528.89,0.00017808,2]
[337788889,1726120188869,290.033009,0.00019726,2]
[337788890,1726120188920,500.0,0.00016438,2]
[337788891,1726120188968,1528.89,0.00018082,2]
[337788892,1726120189021,1528.89,0.00018356,2]
[337788893,1726120189061,1528.89,0.0001863,2]
[337788894,1726120189101,279.66,0.00016712,2]
[337788895,1726120189265,1528.89,0.00018904,2]
[337788896,1726120189318,1528.89,0.00019178,2]
[337788897,1726120189354,502.57664126,0.00016438,2]
[337788898,1726120189393,1528.89,0.00019452,2]
[337788899,1726120189518,1528.89,0.00019726,2]
[337788900,1726120189544,1528.89,0.0002,2]
[337788901,1726120189569,500.0,0.00016438,2]
[337788902,1726120189600,500.0,0.00016712,2]
[337788903,1726120189634,500.0,0.00016986,2]
[337788904,1726120189679,500.0,0.0001726,2]
[337788905,1726120189712,500.0,0.00017534,2]
[337788906,1726120189790,500.0,0.00016438,2]
[337788907,1726120190200,505.23582222,0.00016438,2]
[337788908,1726120190254,500.0,0.00017808,2]
[337788909,1726120190292,500.0,0.00018082,2]
[337788910,1726120190320,-250.0,0.00020049,2]
[337788911,1726120190343,-250.0,0.00020102,2]
[337788912,1726120190369,-250.0,0.00020156,2]
[337788913,1726120190390,-250.0,0.00020209,2]
[337788914,1726120190411,-250.0,0.00020263,2]
[337788915,1726120190433,-14768.779534,0.00020263,3]
[337788916,1726120190455,-17487.4207614,0.00020263,3]
[337788917,1726120190475,-174.012973,0.0002027,2]
[337788918,1726120190497,-935.59,0.00020273,2]
[337788919,1726120190517,-850.52,0.00020273,2]
[337788920,1726120190539,-500.0,0.00020273,2]
[337788921,1726120190563,-1032.85,0.00020273,2]
[337788922,1726120190584,-1451.03,0.00020273,2]
[337788923,1726120190607,-500.0,0.00020273,2]
[337788924,1726120190628,-1120.39,0.00020273,2]
[337788925,1726120190651,-619.85,0.00020273,2]
[337788926,1726120190673,-1885.16,0.00020273,2]
[337788927,1726120190695,-1062.15,0.00020273,2]
[337788928,1726120190719,-723.52,0.00020273,2]
[337788929,1726120190742,-500.0,0.00020273,2]
[337788930,1726120190765,-1280.46,0.00020273,2]
[337788931,1726120190785,-802.21,0.00020273,2]
[337788932,1726120190808,-862.42,0.00020273,2]
[337788933,1726120190830,-829.19,0.00020273,2]
[337788934,1726120190854,-1195.5,0.00020273,2]
[337788935,1726120190876,-500.0,0.00020273,2]
[337788936,1726120190898,-500.0,0.00020273,2]
[337788937,1726120190919,-1973.91,0.00020273,2]
[337788938,1726120190940,-537.61,0.00020273,2]
[337788939,1726120190961,-500.0,0.00020273,2]
[337788940,1726120190982,-500.0,0.00020273,2]
[337788941,1726120191004,-540.55,0.00020273,2]
[337788942,1726120191027,-21987.48,0.00020273,2]
[337788943,1726120191049,-1141.94,0.00020273,2]
[337788944,1726120191071,-1329.92,0.00020273,2]
[337788945,1726120191093,-1485.95,0.00020273,2]
[337788946,1726120191118,-1012.07,0.00020273,2]
[337788947,1726120191140,-1938.17,0.00020273,2]
[337788948,1726120191161,-1238.32,0.00020273,2]
[337788949,1726120191183,-1410.29,0.00020273,2]
[337788950,1726120191204,-1018.33,0.00020273,2]
[337788951,1726120191226,-651.53,0.00020273,2]
[337788952,1726120191251,-1489.37,0.00020273,2]
[337788953,1726120191274,-718.69,0.00020273,2]
[337788954,1726120191298,-544.16,0.00020273,2]
[337788955,1726120191320,-555.97,0.00020273,2]
[337788956,1726120191344,-1466.67,0.00020273,2]
[337788957,1726120191370,-832.83,0.00020273,2]
[337788958,1726120191392,-631.5,0.00020273,2]
[337788959,1726120191415,-892.86,0.00020273,2]
[337788960,1726120191438,-500.0,0.00020273,2]
[337788961,1726120191459,-844.45,0.00020273,2]
[337788962,1726120191481,-500.0,0.00020273,2]
[337788963,1726120191505,-1458.03,0.00020273,2]
[337788964,1726120191527,-2154.29,0.00020273,2]
[337788965,1726120191551,-1013.82,0.00020273,2]
[337788966,1726120191572,-500.0,0.00020273,2]
[337788967,1726120191593,-1649.99,0.00020273,2]
[337788968,1726120191616,-1853.89,0.00020273,2]
[337788969,1726120191638,-500.0,0.00020273,2]
[337788970,1726120191660,-500.0,0.00020273,2]
[337788971,1726120191681,-565.73,0.00020273,2]
[337788972,1726120191703,-292.80070719,0.00020273,2]
[337788973,1726120191726,-3823.52,0.00020273,2]
[337788974,1726120191747,-500.0,0.00020273,2]
[337788975,1726120191770,-3900.25742441,0.00020273,2]
[337788976,1726120191802,500.0,0.00018356,2]
[337788977,1726120191828,5446.19,0.000192,2]
[337788978,1726120191861,500.0,0.0001863,2]
[337788979,1726120191901,500.0,0.00018904,2]
[337788980,1726120191933,500.0,0.00016438,2]
[337788981,1726120191961,500.0,0.00019178,2]
[337788982,1726120191998,500.0,0.00019452,2]
[337788983,1726120192025,500.0,0.00019726,2]
[337788984,1726120192137,500.0,0.0002,2]
[337788985,1726120192180,500.0,0.00016438,2]
[337788986,1726120192280,500.0,0.00016438,2]
[337788987,1726120192392,500.0,0.00016438,2]
[337788988,1726120192527,500.0,0.00016438,2]
[337788989,1726120192563,500.0,0.00016438,2]
[337788990,1726120192604,500.0,0.00016712,2]
[337788991,1726120192635,500.0,0.00016986,2]
[337788992,1726120192661,500.0,0.0001726,2]
[337788993,1726120192690,500.0,0.00016438,2]
[337788994,1726120192716,548.21713829,0.00017534,2]
[337788995,1726120193088,1162.83,0.00016438,2]
[337788996,1726120193116,500.0,0.00016438,2]
[337788997,1726120193142,500.0,0.00016438,2]
[337788998,1726120193169,1162.83,0.00016712,2]
[337788999,1726120193196,1162.83,0.00016986,2]
[337789000,1726120193223,507.2614601,0.00016438,2]
[337789001,1726120193448,1162.83,0.0001726,2]
[337789002,1726120193554,1162.83,0.00017534,2]
[337789003,1726120193584,1162.83,0.00017808,2]
[337789004,1726120193715,1162.83,0.00018082,2]
[337789005,1726120193745,1162.83,0.00018356,2]
[337789006,1726120194059,601.11,0.00016438,2]
[337789007,1726120194135,1162.83,0.0001863,2]
[337789008,1726120194166,500.0,0.00016438,2]
[337789009,1726120194196,1162.83,0.00018904,2]
[337789010,1726120194224,500.0,0.00016438,2]
[337789011,1726120194252,1162.83,0.00019178,2]
[337789012,1726120194279,500.0,0.00016712,2]
[337789013,1726120194312,501.76966104,0.00016438,2]
[337789014,1726120194347,1162.83,0.00019452,2]
[337789015,1726120194375,500.0,0.00016986,2]
[337789016,1726120194405,1162.83,0.00019726,2]
[337789017,1726120194431,500.0,0.0001726,2]
[337789018,1726120194471,1162.83,0.0002,2]
[337789019,1726120194501,500.0,0.00017534,2]
[337789020,1726120194564,341.18,0.00017808,2]
[337789021,1726120194603,500.0,0.00016438,2]